lending/lending_fUSD_20250430
["ID","MTS","AMOUNT","RATE_DAILY","PERIOD"]
[359480322,1746052232353,-1094.23074267,0.00019411,2]
[359480326,1746052232381,-575.40914099,0.00019411,2]
[359480328,1746052232392,-549.85971007,0.00019411,2]
[359480406,1746052238039,-11502.05600114,0.00019411,2]
[359480407,1746052238049,-162.42,0.00019537,2]
[359480408,1746052238058,-850.0,0.00019803,2]
[359480409,1746052238068,-500.0,0.00019804,2]
[359480410,1746052238077,-500.0,0.00019804,2]
[359480411,1746052238087,-500.0,0.00019804,2]
[359480412,1746052238096,-500.0,0.00019804,2]
[359480413,1746052238107,-500.0,0.00019804,2]
[359480414,1746052238116,-500.0,0.00019804,2]
[359480415,1746052238125,-500.0,0.00019804,2]
[359480416,1746052238135,-500.0,0.00019804,2]
[359480417,1746052238144,-500.0,0.00019804,2]
[359480418,1746052238154,-500.0,0.00019804,2]
[359480419,1746052238163,-500.0,0.00019804,2]
[359480420,1746052238172,-500.0,0.00019804,2]
[359480421,1746052238181,-500.0,0.00019804,2]
[359480422,1746052238191,-500.0,0.00019804,2]
[359480423,1746052238200,-500.0,0.00019804,2]
[359480424,1746052238209,-500.0,0.00019804,2]
[359480425,1746052238218,-500.0,0.00019804,2]
[359480426,1746052238227,-500.0,0.00019804,2]
[359480427,1746052238236,-500.0,0.00019804,2]
[359480428,1746052238245,-393.49418045,0.00019804,2]
[359480429,1746052238257,-500.0,0.00019804,2]
[359480430,1746052238267,-500.0,0.00019804,2]
[359480431,1746052238276,-500.0,0.00019804,2]
[359480432,1746052238286,-500.0,0.00019804,2]
[359480433,1746052238295,-500.0,0.00019804,2]
[359480434,1746052238304,-500.0,0.00019804,2]
[359480435,1746052238313,-500.0,0.00019804,2]
[359480437,1746052238322,-500.0,0.00019804,2]
[359480438,1746052238331,-500.0,0.00019804,2]
[359480439,1746052238340,-500.0,0.00019804,2]
[359480440,1746052238351,-500.0,0.00019804,2]
[359480441,1746052238360,-500.0,0.00019804,2]
[359480442,1746052238369,-500.0,0.00019804,2]
[359480444,1746052238378,-500.0,0.00019804,2]
[359480446,1746052238388,-500.0,0.00019804,2]
[359480448,1746052238397,-500.0,0.00019804,2]
[359480450,1746052238406,-500.0,0.00019804,2]
[359480452,1746052238416,-640.77722919,0.00019804,2]
[359480454,1746052238425,-500.0,0.00019804,2]
[359480456,1746052238434,-500.0,0.00019804,2]
[359480458,1746052238443,-500.0,0.00019804,2]
[359480460,1746052238453,-6568.26134288,0.00019804,2]
[359480462,1746052238462,-6568.26134288,0.00019804,2]
[359480464,1746052238471,-6568.26134288,0.00019804,2]
[359480465,1746052238480,-6568.26134288,0.00019804,2]
[359480467,1746052238489,-6568.26134288,0.00019804,2]
[359480469,1746052238499,-6568.26134288,0.00019804,2]
[359480471,1746052238508,-6568.26134288,0.00019804,2]
[359480473,1746052238517,-6568.26134288,0.00019804,2]
[359480475,1746052238526,-6568.26134288,0.00019804,2]
[359480477,1746052238535,-6568.26134288,0.00019804,2]
[359480479,1746052238544,-6568.26134288,0.00019804,2]
[359480481,1746052238553,-6568.26134288,0.00019804,2]
[359480483,1746052238563,-6568.26134288,0.00019804,2]
[359480485,1746052238572,-6568.26134288,0.00019804,2]
[359480487,1746052238584,-6568.26134288,0.00019804,2]
[359480489,1746052238594,-6568.26134288,0.00019804,2]
[359480491,1746052238603,-6568.26134288,0.00019804,2]
[359480493,1746052238612,-6568.26134288,0.00019804,2]
[359480495,1746052238623,-6568.26134288,0.00019804,2]
[359480497,1746052238632,-6568.26134288,0.00019804,2]
[359480499,1746052238641,-6568.26134288,0.00019804,2]
[359480501,1746052238651,-6568.26134288,0.00019804,2]
[359480503,1746052238660,-6568.26134288,0.00019804,2]
[359480505,1746052238670,-7645.33686728,0.00019804,2]
[359480507,1746052238679,-7645.33686728,0.00019804,2]
[359480509,1746052238689,-7645.33686728,0.00019804,2]
[359480511,1746052238698,-7645.33686728,0.00019804,2]
[359480513,1746052238707,-7645.33686728,0.00019804,2]
[359480515,1746052238717,-7645.33686728,0.00019804,2]
[359480517,1746052238727,-7645.33686728,0.00019804,2]
[359480519,1746052238736,-7645.33686728,0.00019804,2]
[359480521,1746052238746,-7645.33686728,0.00019804,2]
[359480523,1746052238755,-7645.33686728,0.00019804,2]
[359480525,1746052238764,-7645.33686728,0.00019804,2]
[359480527,1746052238774,-7645.33686728,0.00019804,2]
[359480529,1746052238783,-7645.33686728,0.00019804,2]
[359480531,1746052238793,-7645.33686728,0.00019804,2]
[359480533,1746052238804,-7645.33686728,0.00019804,2]
[359480535,1746052238815,-7645.33686728,0.00019804,2]
[359480537,1746052238824,-7645.33686728,0.00019804,2]
[359480539,1746052238834,-7645.33686728,0.00019804,2]
[359480541,1746052238844,-500.0,0.00019806,2]
[359480543,1746052238854,-500.0,0.00019806,2]
[359480545,1746052238863,-500.0,0.00019806,2]
[359480547,1746052238873,-500.0,0.00019806,2]
[359480549,1746052238882,-500.0,0.00019806,2]
[359480551,1746052238891,-500.0,0.00019806,2]
[359480553,1746052238901,-500.0,0.00019806,2]
[359480555,1746052238910,-510.24752312,0.00019806,2]
[359480557,1746052238919,-44334.7602613,0.00019819,2]
[359480559,1746052238929,-388.0879197,0.00019819,2]
[359480561,1746052238938,-177.95991643,0.0001982,2]
[359480563,1746052238948,-2047.86,0.00019824,2]
[359480565,1746052238957,-9814.37,0.00019824,2]
[359480567,1746052238966,-15273.18,0.00019824,2]
[359480569,1746052238976,-264.85004993,0.0001984,2]
[359480571,1746052238985,-159.0,0.0001984,2]
[359480573,1746052238995,-177.95991641,0.00019863,2]
[359480575,1746052239005,-177.86017386,0.000199,2]
[359480577,1746052239015,-4411.8356123,0.000199,2]
[359480579,1746052239024,-185.71969899,0.000199,2]
[359480581,1746052239034,-157.0066541,0.000199,3]
[359480583,1746052239045,-153.4100115,0.00019906,3]
[359480585,1746052239054,-177.95991641,0.00019906,2]
[359480587,1746052239063,-500.0,0.00019906,2]
[359480589,1746052239072,-500.0,0.00019919,2]
[359480591,1746052239082,-500.0,0.00019919,2]
[359480593,1746052239091,-356.84952238,0.00019919,2]
[359480595,1746052239101,-500.0,0.00019919,2]
[359480596,1746052239111,-500.0,0.00019919,2]
[359480597,1746052239120,-500.0,0.00019919,2]
[359480598,1746052239130,-500.0,0.00019919,2]
[359480599,1746052239139,-500.0,0.00019919,2]
[359480600,1746052239149,-92003.4073,0.0001992,2]
[359480601,1746052239159,-500.0,0.00019973,2]
[359480602,1746052239168,-500.0,0.00019973,2]
[359480603,1746052239177,-535.81415266,0.00019973,2]
[359480604,1746052239187,-300.0,0.00019999,2]
[359480605,1746052239197,-500.0,0.00019999,2]
[359480606,1746052239206,-311.66665618,0.00019999,2]
[359480607,1746052239216,-542.0,0.0002,2]
[359480608,1746052239226,-4588480.7844579,0.0002,2]
[359480609,1746052239239,-795.48188009,0.0002,2]
[359480613,1746052239267,-745.53782219,0.0002,2]
[359480714,1746052240265,-1269685.07534892,0.0002,2]
[359480716,1746052240275,-36872.193901,0.0002,2]
[359480719,1746052240284,-159.0,0.0002,2]
[359480721,1746052240294,-3605729.05993417,0.0002,2]
[359480723,1746052240304,-79456.7342641,0.00020006,2]
[359480724,1746052240314,-11056.8660185,0.00020006,2]
[359480726,1746052240325,-3008.2574961,0.00020006,2]
[359480729,1746052240334,-1297.5768312,0.00020006,2]
[359480731,1746052240344,-2000.0,0.00020018,2]
[359480733,1746052240354,-83301.80017723,0.0002002,2]
[359480735,1746052240363,-453.22064694,0.0002002,2]
[359480737,1746052240372,-166.66,0.00020126,2]
[359480738,1746052240383,-185.71969892,0.0002013,2]
[359480740,1746052240392,-1030.52,0.000202,2]
[359480742,1746052240402,-5388.0255787,0.000202,2]
[359480745,1746052240412,-300.0,0.0002033,2]
[359480747,1746052240422,-166.7,0.0002035,2]
[359480749,1746052240433,-185.71969892,0.00020359,2]
[359480751,1746052240443,-185.71969892,0.00020589,2]
[359480752,1746052240452,-5941.4676668,0.000207,2]
[359480754,1746052240461,-166.66,0.00020769,2]
[359480757,1746052240471,-5388.02557847,0.00020797,3]
[359480759,1746052240481,-179.0,0.00020813,2]
[359480761,1746052240491,-185.71969892,0.00020818,2]
[359480762,1746052240500,-7989.86,0.00020822,2]
[359480765,1746052240510,-350.0,0.00021,2]
[359480766,1746052240519,-1128.729,0.00021,2]
[359480769,1746052240529,-193.382,0.00021,2]
[359480771,1746052240539,-185.71969892,0.00021048,2]
[359480773,1746052240548,-420.0,0.00021148,2]
[359480775,1746052240558,-162.42,0.00021165,2]
[359480777,1746052240567,-185.71969892,0.00021277,2]
[359480779,1746052240578,-1000.0,0.00021333,2]
[359480780,1746052240594,-200.0,0.00021351,2]
[359480783,1746052240603,-200.0,0.00021351,2]
[359480785,1746052240612,-250.0,0.00021351,2]
[359480787,1746052240623,-200.0,0.00021351,2]
[359480789,1746052240634,-250.0,0.00021351,2]
[359480791,1746052240643,-166.66,0.00021412,2]
[359480793,1746052240652,-185.71969892,0.00021507,2]
[359480795,1746052240663,-783.55,0.00021582,2]
[359480797,1746052240676,-202.42121256,0.00021607,2]
[359480799,1746052240686,-500.0,0.00021607,2]
[359480801,1746052240696,-647.74432468,0.00021607,2]
[359480803,1746052240706,-500.0,0.00021607,2]
[359480804,1746052240715,-500.0,0.00021607,2]
[359480806,1746052240725,-500.0,0.00021607,2]
[359480808,1746052240735,-500.0,0.00021607,2]
[359480810,1746052240744,-500.0,0.00021607,2]
[359480812,1746052240754,-500.0,0.00021607,2]
[359480814,1746052240764,-500.0,0.00021607,2]
[359480817,1746052240774,-500.0,0.00021607,2]
[359480819,1746052240783,-400.0,0.00021607,2]
[359480820,1746052240793,-150.0,0.00021607,2]
[359480822,1746052240802,-256.09421529,0.00021607,2]
[359480824,1746052240812,-500.0,0.00021607,2]
[359480827,1746052240822,-500.0,0.00021607,2]
[359480828,1746052240831,-512.9864985,0.00021607,2]
[359480831,1746052240842,-156.54113417,0.00021607,2]
[359480833,1746052240851,-154.88032908,0.00021607,2]
[359480834,1746052240860,-150.0,0.00021607,2]
[359480836,1746052240871,-150.0,0.00021607,2]
[359480839,1746052240881,-150.0,0.00021607,2]
[359480841,1746052240890,-150.0,0.00021607,2]
[359480843,1746052240900,-178.7693858,0.00021607,2]
[359480845,1746052240909,-150.33239199,0.00021607,2]
[359480847,1746052240918,-150.12328134,0.00021607,2]
[359480849,1746052240928,-150.0,0.00021607,2]
[359480851,1746052240937,-150.0,0.00021607,2]
[359480853,1746052240947,-299.61862379,0.00021607,2]
[359480855,1746052240957,-150.0,0.00021607,2]
[359480857,1746052240966,-150.0,0.00021607,2]
[359480859,1746052240975,-200.69107817,0.00021607,2]
[359480861,1746052240985,-500.0,0.00021607,2]
[359480862,1746052240995,-500.0,0.00021607,2]
[359480865,1746052241004,-159.50129142,0.00021607,2]
[359480867,1746052241013,-500.0,0.00021607,2]
[359480869,1746052241023,-500.0,0.00021607,2]
[359480870,1746052241032,-500.0,0.00021607,2]
[359480872,1746052241042,-500.0,0.00021607,2]
[359480874,1746052241051,-604.59486161,0.00021607,2]
[359480877,1746052241060,-500.0,0.00021607,2]
[359480879,1746052241070,-500.0,0.00021607,2]
[359480880,1746052241079,-500.0,0.00021607,2]
[359480883,1746052241088,-500.0,0.00021607,2]
[359480885,1746052241099,-500.0,0.00021607,2]
[359480887,1746052241108,-500.0,0.00021607,2]
[359480888,1746052241117,-500.0,0.00021607,2]
[359480906,1746052241127,-500.0,0.00021607,2]
[359480909,1746052241300,-500.0,0.00021607,2]
[359480911,1746052241309,-500.0,0.00021607,2]
[359480913,1746052241319,-500.0,0.00021607,2]
[359480915,1746052241328,-500.0,0.00021607,2]
[359480917,1746052241337,-500.0,0.00021607,2]
[359480919,1746052241346,-500.0,0.00021607,2]
[359480921,1746052241356,-500.0,0.00021607,2]
[359480923,1746052241365,-500.0,0.00021607,2]
[359480925,1746052241374,-500.0,0.00021607,2]
[359480927,1746052241383,-500.0,0.00021607,2]
[359480929,1746052241392,-362.82471418,0.00021607,2]
[359480931,1746052241401,-150.0,0.00021607,2]
[359480933,1746052241411,-248.34739861,0.00021607,2]
[359480935,1746052241420,-500.0,0.00021607,2]
[359480937,1746052241429,-500.0,0.00021607,2]
[359480939,1746052241438,-500.0,0.00021607,2]
[359480941,1746052241447,-513.33743987,0.00021607,2]
[359480943,1746052241457,-150.0,0.00021607,2]
[359480945,1746052241466,-150.0,0.00021607,2]
[359480947,1746052241475,-153.73823398,0.00021607,2]
[359480949,1746052241484,-500.0,0.00021607,2]
[359480951,1746052241493,-500.0,0.00021607,2]
[359480953,1746052241503,-500.0,0.00021607,2]
[359480955,1746052241512,-500.0,0.00021607,2]
[359480957,1746052241522,-500.0,0.00021607,2]
[359480959,1746052241532,-500.0,0.00021607,2]
[359480961,1746052241541,-500.0,0.00021607,2]
[359480963,1746052241551,-500.0,0.00021607,2]
[359480965,1746052241560,-513.3032493,0.00021607,2]
[359480967,1746052241569,-150.0,0.00021607,2]
[359480969,1746052241580,-150.0,0.00021607,2]
[359480971,1746052241591,-150.0,0.00021607,2]
[359480973,1746052241600,-170.52746854,0.00021607,2]
[359480975,1746052241610,-500.0,0.00021607,2]
[359480977,1746052241620,-500.0,0.00021607,2]
[359480979,1746052241629,-500.0,0.00021607,2]
[359480981,1746052241638,-500.0,0.00021607,2]
[359480983,1746052241647,-500.0,0.00021607,2]
[359480985,1746052241657,-500.0,0.00021607,2]
[359480987,1746052241667,-500.0,0.00021607,2]
[359480989,1746052241676,-500.0,0.00021607,2]
[359480991,1746052241686,-500.0,0.00021607,2]
[359480993,1746052241695,-500.0,0.00021607,2]
[359480995,1746052241704,-500.0,0.00021607,2]
[359480997,1746052241713,-500.0,0.00021607,2]
[359480999,1746052241723,-500.0,0.00021607,2]
[359481001,1746052241732,-480.69417356,0.00021607,2]
[359481003,1746052241741,-500.0,0.00021607,2]
[359481005,1746052241752,-500.0,0.00021607,2]
[359481007,1746052241760,-500.0,0.00021607,2]
[359481009,1746052241770,-500.0,0.00021607,2]
[359481011,1746052241779,-500.0,0.00021607,2]
[359481013,1746052241789,-500.0,0.00021607,2]
[359481015,1746052241798,-531.00646954,0.00021607,2]
[359481017,1746052241807,-500.0,0.00021607,2]
[359481019,1746052241817,-500.0,0.00021607,2]
[359481021,1746052241826,-500.0,0.00021607,2]
[359481023,1746052241835,-384.98200739,0.00021607,2]
[359481025,1746052241845,-150.60842375,0.00021607,2]
[359481027,1746052241854,-150.0,0.00021607,2]
[359481029,1746052241863,-150.0,0.00021607,2]
[359481031,1746052241872,-150.0,0.00021607,2]
[359481033,1746052241882,-150.0,0.00021607,2]
[359481035,1746052241892,-155.05082673,0.00021607,2]
[359481037,1746052241903,-500.0,0.00021607,2]
[359481039,1746052241912,-500.0,0.00021607,2]
[359481041,1746052241921,-500.0,0.00021607,2]
[359481043,1746052241931,-500.0,0.00021607,2]
[359481045,1746052241941,-500.0,0.00021607,2]
[359481047,1746052241951,-500.0,0.00021607,2]
[359481049,1746052241961,-264.79213534,0.00021607,2]
[359481051,1746052241972,-277.53900599,0.00021607,2]
[359481053,1746052241982,-150.0,0.00021607,2]
[359481055,1746052241991,-150.0,0.00021607,2]
[359481057,1746052242000,-150.83970176,0.00021607,2]
[359481059,1746052242010,-150.0,0.00021607,2]
[359481061,1746052242019,-150.0,0.00021607,2]
[359481063,1746052242028,-200.95864855,0.00021607,2]
[359481065,1746052242037,-150.0,0.00021607,2]
[359481067,1746052242047,-152.86945876,0.00021607,2]
[359481069,1746052242056,-150.0,0.00021607,2]
[359481071,1746052242065,-150.0,0.00021607,2]
[359481073,1746052242074,-205.04019055,0.00021607,2]
[359481075,1746052242083,-150.0,0.00021607,2]
[359481077,1746052242094,-500.0,0.00021607,2]
[359481079,1746052242104,-500.0,0.00021607,2]
[359481081,1746052242112,-500.0,0.00021607,2]
[359481083,1746052242122,-500.0,0.00021607,2]
[359481085,1746052242131,-500.0,0.00021607,2]
[359481087,1746052242140,-207.24282809,0.00021607,2]
[359481089,1746052242149,-500.0,0.00021607,2]
[359481091,1746052242158,-500.0,0.00021607,2]
[359481093,1746052242167,-500.0,0.00021607,2]
[359481095,1746052242178,-500.0,0.00021607,2]
[359481097,1746052242187,-500.0,0.00021607,2]
[359481099,1746052242197,-500.0,0.00021607,2]
[359481101,1746052242206,-500.0,0.00021607,2]
[359481103,1746052242215,-500.0,0.00021607,2]
[359481105,1746052242225,-500.0,0.00021607,2]
[359481107,1746052242233,-551.08104489,0.00021607,2]
[359481109,1746052242242,-150.0,0.00021607,2]
[359481111,1746052242252,-500.0,0.00021607,2]
[359481113,1746052242263,-500.0,0.00021607,2]
[359481115,1746052242272,-500.0,0.00021607,2]
[359481117,1746052242281,-500.0,0.00021607,2]
[359481119,1746052242290,-500.0,0.00021607,2]
[359481121,1746052242299,-500.0,0.00021607,2]
[359481123,1746052242309,-500.0,0.00021607,2]
[359481125,1746052242318,-500.0,0.00021607,2]
[359481127,1746052242327,-500.0,0.00021607,2]
[359481129,1746052242337,-500.0,0.00021607,2]
[359481131,1746052242346,-500.0,0.00021607,2]
[359481132,1746052242355,-500.0,0.00021607,2]
[359481134,1746052242364,-423.39274109,0.00021607,2]
[359481137,1746052242374,-150.0,0.00021607,2]
[359481139,1746052242383,-441.0,0.00021607,2]
[359481141,1746052242392,-441.0,0.00021607,2]
[359481142,1746052242401,-441.0,0.00021607,2]
[359481143,1746052242410,-441.0,0.00021607,2]
[359481144,1746052242419,-441.0,0.00021607,2]
[359481145,1746052242428,-441.0,0.00021607,2]
[359481146,1746052242437,-441.0,0.00021607,2]
[359481147,1746052242446,-441.0,0.00021607,2]
[359481148,1746052242455,-441.0,0.00021607,2]
[359481149,1746052242464,-441.0,0.00021607,2]
[359481150,1746052242473,-441.0,0.00021607,2]
[359481151,1746052242482,-441.0,0.00021607,2]
[359481152,1746052242491,-441.0,0.00021607,2]
[359481153,1746052242500,-441.0,0.00021607,2]
[359481154,1746052242509,-441.0,0.00021607,2]
[359481156,1746052242517,-441.0,0.00021607,2]
[359481158,1746052242527,-441.0,0.00021607,2]
[359481160,1746052242536,-441.0,0.00021607,2]
[359481162,1746052242545,-441.0,0.00021607,2]
[359481164,1746052242555,-441.0,0.00021607,2]
[359481166,1746052242564,-441.0,0.00021607,2]
[359481168,1746052242573,-441.0,0.00021607,2]
[359481170,1746052242586,-441.0,0.00021607,2]
[359481172,1746052242595,-443.6087954,0.00021607,2]
[359481174,1746052242605,-500.0,0.00021607,2]
[359481176,1746052242614,-500.0,0.00021607,2]
[359481178,1746052242624,-500.0,0.00021607,2]
[359481180,1746052242635,-500.0,0.00021607,2]
[359481182,1746052242645,-500.0,0.00021607,2]
[359481184,1746052242656,-500.0,0.00021607,2]
[359481186,1746052242666,-500.0,0.00021607,2]
[359481188,1746052242676,-500.0,0.00021607,2]
[359481190,1746052242686,-500.0,0.00021607,2]
[359481192,1746052242695,-500.0,0.00021607,2]
[359481194,1746052242705,-500.0,0.00021607,2]
[359481196,1746052242715,-500.0,0.00021607,2]
[359481198,1746052242724,-500.0,0.00021607,2]
[359481200,1746052242734,-500.0,0.00021607,2]
[359481202,1746052242743,-634.45502431,0.00021607,2]
[359481204,1746052242752,-875.0,0.00021619,2]
[359481206,1746052242762,-922.0,0.00021619,2]
[359481207,1746052242770,-154.065,0.00021619,2]
[359481210,1746052242780,-1000.0,0.00021644,2]
[359481212,1746052242790,-5388.02557847,0.00021693,3]
[359481213,1746052242799,-300.0,0.000217,2]
[359481215,1746052242808,-7314.26836107,0.000217,2]
[359481217,1746052242817,-797.0,0.00021723,2]
[359481219,1746052242826,-1289.0,0.00021723,2]
[359481221,1746052242835,-1033.602,0.00021723,2]
[359481223,1746052242845,-1463.905,0.00021723,2]
[359481225,1746052242857,-618.48,0.00021723,2]
[359481227,1746052242866,-2068.0,0.00021723,2]
[359481229,1746052242875,-582.625,0.00021723,2]
[359481231,1746052242885,-1138.0,0.00021723,2]
[359481233,1746052242894,-6746.0,0.00021723,2]
[359481235,1746052242904,-4001.0,0.00021723,2]
[359481237,1746052242914,-263.24,0.00021723,2]
[359481239,1746052242924,-499.99,0.00021757,2]
[359481241,1746052242933,-1128.97,0.00021757,2]
[359481243,1746052242943,-1010.04,0.00021757,2]
[359481245,1746052242952,-6934.58,0.00021757,2]
[359481247,1746052242962,-150.99,0.00021757,2]
[359481250,1746052242971,-1152.68,0.00021757,5]
[359481253,1746052242981,-999.99,0.00021757,2]
[359481256,1746052242990,-150.99,0.00021757,2]
[359481259,1746052242999,-5053.54823058,0.000218,2]
[359481261,1746052243008,-501.68025213,0.0002187,2]
[359481263,1746052243017,-1654.14512105,0.0002187,2]
[359481266,1746052243027,-513.80931495,0.00021918,2]
[359481268,1746052243036,-160.92343708,0.00021918,2]
[359481270,1746052243046,-303.66,0.00022,2]
[359481272,1746052243055,-305.88,0.00022019,2]
[359481274,1746052243064,-305.06,0.0002202,2]
[359481276,1746052243073,-166.66,0.00022055,2]
[359481278,1746052243083,-30000.0,0.0002207,2]
[359481280,1746052243092,-34262.70999449,0.000225,2]
[359481282,1746052243100,-5388.02557847,0.0002259,4]
[359481285,1746052243112,-166.66,0.00022699,2]
[359481287,1746052243121,-505.3753181,0.0002271,2]
[359481289,1746052243130,-162.42,0.00022794,2]
[359481293,1746052243139,-163.0,0.00022941,2]
[359481296,1746052243148,-258.253,0.00022941,2]
[359481299,1746052243158,-1503.18221885,0.00023,2]
[359481301,1746052243167,-400.0,0.00023,2]
[359481303,1746052243176,-200.0,0.00023,2]
[359481305,1746052243186,-587.0,0.00023042,2]
[359481307,1746052243195,-177.86017383,0.00023096,2]
[359481309,1746052243205,-33098.75819492,0.000232,2]
[359481311,1746052243214,-5388.02557847,0.00023486,4]
[359481313,1746052243223,-200.0,0.000235,2]
[359481315,1746052243232,-1000.0,0.00023704,2]
[359481317,1746052243242,-863.47,0.00023836,2]
[359481319,1746052243252,-338.32,0.00023839,2]
[359481321,1746052243261,-783.55,0.00023846,2]
[359481323,1746052243271,-153.4100115,0.000239,6]
[359481325,1746052243280,-5864.06942388,0.00024,14]
[359481327,1746052243290,-12920.42035787,0.00024,2]
[359481330,1746052243314,-1402.275,0.00024,2]
[359481340,1746052243394,-4009.11198668,0.00024,2]
[359481610,1746052246202,-362.57651755,0.00021607,2]
[359481612,1746052246212,-173.27663942,0.00021723,2]
[359481614,1746052246224,-1165.72336058,0.00021723,2]
[359481616,1746052246234,-4848.2275825,0.00024,2]
[359481620,1746052246284,-1698.025,0.00024,2]
[359481621,1746052246300,-3776.0,0.00024,2]
[359481626,1746052246389,-6407.34018552,0.00024,2]
[359482075,1746052288892,83656.0020677,0.00045856,31]
[359482077,1746052409262,500.0,0.00045856,120]
[359482080,1746052512483,500.0,0.00045952,120]
[359482081,1746052512752,500.0,0.00045952,120]
[359482082,1746052512999,500.0,0.00045952,120]
[359482083,1746052513226,500.0,0.00045952,120]
[359482084,1746052513476,500.0,0.00045952,120]
[359482085,1746052513749,500.0,0.00045952,120]
[359482086,1746052551070,500.0,0.00045952,120]
[359482087,1746052551338,500.0,0.00045952,120]
[359482088,1746052551599,500.0,0.00045952,120]
[359482089,1746052551858,500.0,0.00045952,120]
[359482090,1746052552118,500.0,0.00045952,120]
[359482091,1746052552355,500.0,0.00045952,120]
[359482092,1746052552619,500.0,0.00045952,120]
[359482093,1746052552848,500.0,0.00045952,120]
[359482094,1746052553111,500.0,0.00045952,120]
[359482095,1746052553375,500.0,0.00045952,120]
[359482096,1746052593456,2800.0,0.00019431,31]
[359482097,1746052677299,240.50439584,0.00024,32]
[359482102,1746052881858,250.0,0.00017,2]
[359482103,1746052882931,300.0,0.00019,2]
[359482159,1746053432374,-166.66,0.00019432,2]
[359482160,1746053432384,-250.0,0.00019455,2]
[359482161,1746053432393,-187.11466006,0.00019694,2]
[359482162,1746053432403,-685.54,0.00019716,2]
[359482163,1746053432412,-300.0,0.00019793,2]
[359482164,1746053432422,-1200.0,0.00019793,2]
[359482165,1746053432431,-300.0,0.00019793,2]
[359482166,1746053432444,-500.0,0.00019794,2]
[359482167,1746053432454,-2.02033994,0.00019794,2]
[359482168,1746053432468,-819.12161825,0.00019794,2]
[359482169,1746053432477,-263.26997136,0.00019794,2]
[359482170,1746053432487,-821.14195819,0.00019794,2]
[359482171,1746053432498,-821.14195819,0.00019794,2]
[359482172,1746053432509,-821.14195819,0.00019794,2]
[359482173,1746053432519,-821.14195819,0.00019794,2]
[359482174,1746053432529,-821.14195819,0.00019794,2]
[359482175,1746053432540,-821.14195819,0.00019794,2]
[359482176,1746053432549,-821.14195819,0.00019794,2]
[359482177,1746053432559,-821.14195819,0.00019794,2]
[359482178,1746053432569,-821.14195819,0.00019794,2]
[359482179,1746053432579,-821.14195819,0.00019794,2]
[359482180,1746053432590,-821.14195819,0.00019794,2]
[359482181,1746053432600,-821.14195819,0.00019794,2]
[359482182,1746053432611,-821.14195819,0.00019794,2]
[359482184,1746053432621,-821.14195819,0.00019794,2]
[359482186,1746053432630,-821.14195819,0.00019794,2]
[359482188,1746053432639,-821.14195819,0.00019794,2]
[359482189,1746053432649,-821.14195819,0.00019794,2]
[359482192,1746053432659,-821.14195819,0.00019794,2]
[359482194,1746053432669,-821.14195819,0.00019794,2]
[359482196,1746053432679,-821.14195819,0.00019794,2]
[359482198,1746053432688,-821.14195819,0.00019794,2]
[359482200,1746053432697,-821.14195819,0.00019794,2]
[359482202,1746053432706,-821.14195819,0.00019794,2]
[359482203,1746053432715,-821.14195819,0.00019794,2]
[359482205,1746053432724,-821.14195819,0.00019794,2]
[359482208,1746053432734,-821.14195819,0.00019794,2]